bitfinex/quotes_BTCUSD_20250619
["timestamp","ask_amount","ask_price","bid_price","bid_amount"]
[1750310881592,0.41608734,105200.0,105190.0,0.49296307]
[1750310881801,0.40658182,105200.0,105190.0,0.49296307]
[1750310882510,0.39707639,105200.0,105190.0,0.49296307]
[1750310882752,0.41608734,105200.0,105190.0,0.49296307]
[1750310883510,0.41608797,105200.0,105190.0,0.49296307]
[1750310883723,0.60620266,105200.0,105190.0,0.4834571]
[1750310883943,0.58719189,105200.0,105190.0,0.21963214]
[1750310884151,0.58719189,105200.0,105190.0,0.42473847]
[1750310885671,0.58719189,105200.0,105190.0,0.43424489]
[1750310886079,0.38757213,105200.0,105190.0,0.47325104]
[1750310886710,0.39707783,105200.0,105190.0,0.48275701]
[1750310888027,0.38757177,105200.0,105190.0,0.48275701]
[1750310888664,0.39707747,105200.0,105190.0,0.44375104]
[1750310888880,0.39707747,105200.0,105190.0,0.46276307]
[1750310889099,0.38757177,105200.0,105190.0,0.46276307]
[1750310889852,0.38757177,105200.0,105190.0,0.49156307]
[1750310890060,0.39707738,105200.0,105190.0,0.49156307]
[1750310890690,0.39707738,105200.0,105190.0,0.4820571]
[1750310891674,0.39707738,105200.0,105190.0,0.2864571]
[1750310891892,0.72087961,105200.0,105190.0,0.0001]
[1750310892107,0.74760348,105200.0,105190.0,0.0001]
[1750310893858,0.74760254,105200.0,105190.0,0.0001]
[1750310894525,0.19963856,105190.0,105180.0,0.2244]
[1750310894743,0.19963856,105190.0,105180.0,0.04038]
[1750310894744,0.35660207,105190.0,105180.0,0.04038]
[1750310894960,0.35660207,105190.0,105180.0,0.1957]
[1750310896121,0.35860207,105190.0,105180.0,0.1957]
[1750310896604,0.72670061,105190.0,105180.0,0.0001]
[1750310896835,0.56955772,105180.0,105170.0,0.04038]
[1750310897064,0.72341766,105180.0,105170.0,0.04038]
[1750310897508,0.74123817,105180.0,105170.0,0.04038]
[1750310897741,0.72341766,105180.0,105170.0,0.04038]
[1750310898218,0.74122033,105180.0,105170.0,0.04038]
[1750310898689,0.83746209,105180.0,105170.0,0.04038]
[1750310899401,0.83745607,105180.0,105170.0,0.04038]
[1750310899646,0.8196534,105180.0,105170.0,0.04038]
[1750310900137,0.8206534,105180.0,105170.0,0.04038]
[1750310900872,0.8216534,105180.0,105170.0,0.04038]
[1750310902095,0.82164166,105180.0,105170.0,0.04038]
[1750310903387,0.79314166,105180.0,105170.0,0.04038]
[1750310903803,0.78425267,105180.0,105170.0,0.04038]
[1750310904018,0.81282367,105180.0,105170.0,0.04038]
[1750310904298,0.81282367,105180.0,105170.0,0.0001]
[1750310905470,0.8355663,105180.0,105170.0,0.0001]
[1750310905680,0.81276022,105180.0,105170.0,0.0001]
[1750310909854,0.78286022,105180.0,105170.0,0.0001]
[1750310910064,0.81266022,105180.0,105170.0,0.0001]
[1750310910978,0.78286022,105180.0,105170.0,0.0001]
[1750310911406,0.78286022,105180.0,105170.0,0.0299]
[1750310915814,0.79174775,105180.0,105170.0,0.0299]
[1750310916243,0.79174839,105180.0,105170.0,0.0299]
[1750310916873,0.79174839,105180.0,105170.0,0.02038322]
[1750310918978,0.79175259,105180.0,105160.0,0.30820944]
[1750310919195,0.01901592,105170.0,105160.0,0.29870094]
[1750310919640,0.04758692,105170.0,105160.0,0.29870094]
[1750310919852,0.05709497,105170.0,105160.0,0.29870094]
[1750310920060,0.0666032,105170.0,105160.0,0.32850094]
[1750310920898,0.05709497,105170.0,105160.0,0.32850094]
[1750310921103,0.05709497,105170.0,105160.0,0.32950094]
[1750310922102,0.04758683,105170.0,105160.0,0.32950094]
[1750310922506,0.028571,105170.0,105160.0,0.32950094]
[1750310922719,0.05709506,105170.0,105160.0,0.32950094]
[1750310923080,0.04758683,105170.0,105160.0,0.32950094]
[1750310923357,0.028571,105170.0,105160.0,0.32950094]
[1750310923547,0.38175837,105180.0,105170.0,0.27809244]
[1750310923816,0.47289807,105180.0,105170.0,0.27809244]
[1750310924524,0.67255561,105180.0,105170.0,0.26858466]
[1750310924762,0.59132383,105180.0,105170.0,0.26858466]
[1750310925230,0.59132383,105180.0,105170.0,0.42394466]
[1750310926419,0.58181687,105180.0,105170.0,0.42394466]
[1750310926885,0.58281687,105180.0,105170.0,0.42394466]
[1750310927511,0.58282462,105180.0,105170.0,0.42394466]
[1750310929305,0.65631296,105180.0,105170.0,0.41443661]
[1750310929545,0.57331739,105180.0,105170.0,0.42394484]
[1750310930198,0.57331739,105180.0,105170.0,0.43345289]
[1750310930421,0.57331739,105180.0,105170.0,0.42394484]
[1750310931097,0.57331739,105180.0,105170.0,0.43345298]
[1750310931709,0.57331739,105180.0,105170.0,0.47373298]
[1750310932396,0.57331739,105180.0,105170.0,0.46422484]
[1750310933278,0.65535921,105180.0,105170.0,0.47373298]
[1750310935040,0.65535875,105180.0,105170.0,0.47373298]
[1750310935547,0.65535875,105180.0,105170.0,0.46422484]
[1750310935756,0.64585142,105180.0,105170.0,0.46422484]
[1750310935966,0.56380658,105180.0,105170.0,0.46422484]
[1750310937660,0.56380658,105180.0,105170.0,0.47373298]
[1750310937861,0.59232847,105180.0,105170.0,0.48324094]
[1750310938481,0.59232847,105180.0,105170.0,0.47373298]
[1750310938721,0.67627442,105180.0,105170.0,0.48324103]
[1750310938930,0.67627404,105180.0,105170.0,0.4927489]
[1750310939135,0.67627404,105180.0,105170.0,0.48324103]
[1750310939343,0.67627404,105180.0,105170.0,0.49274899]
[1750310939545,0.67627404,105180.0,105170.0,0.48324103]
[1750310939984,0.67627404,105180.0,105170.0,0.49274899]
[1750310940989,0.67627404,105180.0,105170.0,0.49274854]
[1750310941216,0.67627404,105180.0,105170.0,0.48324067]
[1750310941417,0.67627394,105180.0,105170.0,0.48324067]
[1750310941904,0.67627394,105180.0,105170.0,0.49274854]
[1750310942136,0.67627394,105180.0,105170.0,0.48324067]
[1750310944023,0.67627452,105180.0,105170.0,0.48324067]
[1750310944291,0.67627452,105180.0,105170.0,0.49274854]
[1750310944741,0.67527452,105180.0,105170.0,0.49274854]
[1750310945220,0.59132857,105180.0,105170.0,0.49274854]
[1750310945453,0.58241682,105180.0,105170.0,0.49274854]
[1750310945693,0.4011785,105180.0,105170.0,0.49274854]
[1750310945928,0.39167053,105180.0,105170.0,0.49274809]
[1750310946164,0.41068473,105180.0,105170.0,0.49274809]
[1750310946393,0.42019215,105180.0,105170.0,0.49274809]
[1750310946616,0.42119215,105180.0,105170.0,0.49274809]
[1750310947303,0.38853554,105180.0,105170.0,0.49274809]
[1750310947556,0.38953554,105180.0,105170.0,0.49274809]
[1750310947819,0.37052079,105180.0,105170.0,0.49274809]
[1750310948051,0.38002812,105180.0,105170.0,0.49274809]
[1750310948734,0.36101365,105180.0,105170.0,0.49274809]
[1750310948955,0.3705207,105180.0,105170.0,0.49274809]
[1750310949726,0.36101365,105180.0,105170.0,0.49274809]
[1750310949928,0.3705207,105180.0,105170.0,0.49274809]
[1750310950546,0.39333957,105180.0,105170.0,0.49274809]
[1750310950781,0.36992701,105180.0,105170.0,0.49274809]
[1750310951277,0.01091336,105180.0,105170.0,0.49274809]
[1750310951491,0.002,105180.0,105170.0,0.49274809]
[1750310952570,0.002,105180.0,105170.0,0.29710809]
[1750310952785,0.02101392,105180.0,105170.0,0.49270809]
[1750310953208,0.02101383,105180.0,105170.0,0.49270809]
[1750310954165,0.01150687,105180.0,105170.0,0.49270809]
[1750310955055,0.02101392,105180.0,105170.0,0.49270809]
[1750310955269,0.03052115,105180.0,105170.0,0.49270809]
[1750310955733,0.02101392,105180.0,105170.0,0.49270809]
[1750310956619,0.03052115,105180.0,105170.0,0.49266809]
[1750310956882,0.02101392,105180.0,105170.0,0.49266809]
[1750310957414,0.03052115,105180.0,105170.0,0.49266809]
[1750310957883,0.02101392,105180.0,105170.0,0.49266809]
[1750310958118,0.03052115,105180.0,105170.0,0.49266809]
[1750310959617,0.03052115,105180.0,105170.0,0.21986829]
[1750310959618,0.62377665,105180.0,105170.0,0.21986829]
[1750310959865,0.67600096,105180.0,105170.0,0.39519661]
[1750310960110,0.70456996,105180.0,105170.0,0.40470502]
[1750310960368,0.67456996,105180.0,105170.0,0.41421316]
[1750310961111,0.67456996,105180.0,105170.0,0.42372121]
[1750310961358,0.67457034,105180.0,105170.0,0.42372121]
[1750310961587,0.67457034,105180.0,105170.0,0.45332121]
[1750310961809,0.67457034,105180.0,105170.0,0.24829316]
[1750310962065,0.66506311,105180.0,105170.0,0.43430502]
[1750310963885,0.66506311,105180.0,105170.0,0.23878502]
[1750310964109,0.66506352,105180.0,105170.0,0.44381325]
[1750310965098,0.65555619,105180.0,105170.0,0.44381325]
[1750310966290,0.65555619,105180.0,105170.0,0.24829325]
[1750310966530,0.53967652,105170.0,105160.0,0.26963517]
[1750310966758,0.63582574,105170.0,105160.0,0.42491517]
[1750310967022,0.53967652,105170.0,105160.0,0.43442421]
[1750310967250,0.53967652,105170.0,105160.0,0.45344202]
[1750310967945,0.53967652,105170.0,105160.0,0.45444202]
[1750310968162,0.53967652,105170.0,105160.0,0.48504202]
[1750310968402,0.56116917,105170.0,105160.0,0.48500202]
[1750310969433,0.57865119,105170.0,105160.0,0.48500202]
[1750310969708,0.57865119,105170.0,105160.0,0.47549316]
[1750310969943,0.57865119,105170.0,105160.0,0.32025316]
[1750310970191,0.57865119,105170.0,105160.0,0.47549316]
[1750310970723,0.57865119,105170.0,105160.0,0.48500202]
[1750310971420,0.57865119,105170.0,105160.0,0.49451079]
[1750310975140,0.60146266,105170.0,105160.0,0.49451079]
[1750310975360,0.60146266,105170.0,105160.0,0.48500202]
[1750310976222,0.57865119,105170.0,105160.0,0.48500202]
[1750310976436,0.60146073,105170.0,105160.0,0.48500202]
[1750310976675,0.57865119,105170.0,105160.0,0.48500202]
[1750310977706,0.57865119,105170.0,105160.0,0.47549316]
[1750310982380,0.55715854,105170.0,105160.0,0.48500202]
[1750310983377,0.35748202,105170.0,105160.0,0.48500202]
[1750310983586,0.55715854,105170.0,105160.0,0.48500202]
[1750310984225,0.55715854,105170.0,105160.0,0.49451079]
[1750310984422,0.56666686,105170.0,105160.0,0.49451079]
[1750310984646,0.37649821,105170.0,105160.0,0.49451034]
[1750310985526,0.38600653,105170.0,105160.0,0.49451034]
[1750310985998,0.39551494,105170.0,105160.0,0.49451034]
[1750310987650,0.38600653,105170.0,105160.0,0.49451034]
[1750310989423,0.39551494,105170.0,105160.0,0.49451034]
[1750310989661,0.39551494,105170.0,105160.0,0.48500166]
[1750310989662,0.58568323,105170.0,105160.0,0.48500166]
[1750310990117,0.39551494,105170.0,105160.0,0.49451034]
[1750310991440,0.38600581,105170.0,105160.0,0.29903034]
[1750310991667,0.39551404,105170.0,105160.0,0.49447034]
[1750310991873,0.40502236,105170.0,105160.0,0.49447034]
[1750310992309,0.40502308,105170.0,105160.0,0.49447034]
[1750310992967,0.37649767,105170.0,105160.0,0.49447034]
[1750310993179,0.38600581,105170.0,105160.0,0.49447034]
[1750310993839,0.39551404,105170.0,105160.0,0.29903034]
[1750310994051,0.58568233,105170.0,105160.0,0.44481289]
[1750310994495,0.58568233,105170.0,105160.0,0.43530403]
[1750310994710,0.6174274,105170.0,105160.0,0.43530403]
[1750310994929,0.6174274,105170.0,105160.0,0.44481289]
[1750310995420,0.40502236,105170.0,105160.0,0.45432166]
[1750310995641,0.40502308,105170.0,105160.0,0.45432166]
[1750310995868,0.41834531,105170.0,105160.0,0.45432166]
[1750310997003,0.59841686,105170.0,105160.0,0.0307]
[1750310997221,0.59841686,105170.0,105160.0,0.1965]
[1750310997222,0.6236813,105170.0,105160.0,0.1965]
[1750310997432,0.6541813,105170.0,105160.0,0.1965]
[1750310998332,0.6541813,105170.0,105160.0,0.1955]
[1750310998547,0.6581813,105170.0,105160.0,0.1955]
[1750310998979,0.66486939,105170.0,105160.0,0.1955]
[1750310999394,0.66486939,105170.0,105160.0,0.18598406]
[1750311000299,0.66486952,105170.0,105160.0,0.18598406]
[1750311000555,0.64926167,105170.0,105160.0,0.18598406]
[1750311000796,0.66486738,105170.0,105160.0,0.18598406]
[1750311001033,0.54920446,105160.0,105150.0,0.25690839]
[1750311001249,0.54920446,105160.0,105150.0,0.43321843]
[1750311001701,0.54920446,105160.0,105150.0,0.44272838]
[1750311002256,0.54920446,105160.0,105150.0,0.47182838]
[1750311003707,0.54920446,105160.0,105150.0,0.45280839]
[1750311003917,0.55020446,105160.0,105150.0,0.45280839]
[1750311004103,0.55120446,105160.0,105150.0,0.45280839]
[1750311004337,0.54169569,105160.0,105150.0,0.45280839]
[1750311004785,0.54169569,105160.0,105150.0,0.0577]
[1750311005018,0.64535521,105160.0,105150.0,0.0402]
[1750311005197,0.64535521,105160.0,105150.0,0.19536]
[1750311005428,0.65426889,105160.0,105150.0,0.19536]
[1750311005837,0.57342719,105160.0,105150.0,0.18584166]
[1750311006044,0.56451351,105160.0,105150.0,0.21594166]
[1750311006248,0.57342483,105160.0,105150.0,0.21594166]
[1750311006451,0.57342483,105160.0,105150.0,0.22546]
[1750311007677,0.56451351,105160.0,105150.0,0.22546]
[1750311008299,0.65057699,105160.0,105150.0,0.22546]
[1750311013161,0.65057699,105160.0,105150.0,0.0703]
[1750311015942,0.65057699,105160.0,105150.0,0.07981022]
[1750311016586,0.65057699,105160.0,105150.0,0.0703]
[1750311020323,0.67914999,105160.0,105150.0,0.0703]
[1750311021017,0.67914999,105160.0,105150.0,0.0402]
[1750311021674,0.67914999,105160.0,105150.0,0.0681]
[1750311022338,0.67914999,105160.0,105150.0,0.0402]
[1750311022550,0.53971468,105150.0,105140.0,0.26153112]
[1750311022770,0.53971468,105150.0,105140.0,0.10641112]
[1750311023441,0.62734843,105150.0,105140.0,0.04022]
[1750311023868,0.65015673,105150.0,105140.0,0.04022]
[1750311024081,0.65015673,105150.0,105140.0,0.06812]
[1750311024528,0.42763375,105150.0,105140.0,0.06912]
[1750311024744,0.64064766,105150.0,105140.0,0.06912]
[1750311025177,0.65015788,105150.0,105140.0,0.06912]
[1750311025594,0.65015788,105150.0,105140.0,0.06812]
[1750311025839,0.65115788,105150.0,105140.0,0.06812]
[1750311026071,0.65215788,105150.0,105140.0,0.06812]
[1750311026529,0.57343714,105150.0,105140.0,0.06812]
[1750311026751,0.56452413,105150.0,105140.0,0.06812]
[1750311026966,0.57343495,105150.0,105140.0,0.06812]
[1750311027206,0.57343492,105150.0,105140.0,0.06812]
[1750311027425,0.60201092,105150.0,105140.0,0.06812]
[1750311027647,0.69816014,105150.0,105140.0,0.06812]
[1750311028926,0.69816125,105150.0,105140.0,0.06812]
[1750311029358,0.68924935,105150.0,105140.0,0.06812]
[1750311033012,0.68924935,105150.0,105140.0,0.09742]
[1750311038592,0.68924935,105150.0,105140.0,0.06812]
[1750311039467,0.53973359,105140.0,105130.0,0.2263]
[1750311039684,0.53973359,105140.0,105130.0,0.41654065]
[1750311040114,0.53973359,105140.0,105130.0,0.4260525]
[1750311040330,0.54924444,105140.0,105130.0,0.43556408]
[1750311041640,0.5587552,105140.0,105130.0,0.44607602]
[1750311041854,0.5587552,105140.0,105130.0,0.44607647]
[1750311042510,0.5587552,105140.0,105130.0,0.47457647]
[1750311042719,0.54924444,105140.0,105130.0,0.47457647]
[1750311043550,0.54924444,105140.0,105130.0,0.48408823]
[1750311044204,0.54924444,105140.0,105130.0,0.4935999]
[1750311046158,0.54924444,105140.0,105130.0,0.48408823]
[1750311046579,0.54924444,105140.0,105130.0,0.47457647]
[1750311047461,0.54924444,105140.0,105130.0,0.48408823]
[1750311048773,0.53973359,105140.0,105130.0,0.46506462]
[1750311049650,0.60607397,105140.0,105130.0,0.2558]
[1750311050081,0.62889587,105140.0,105130.0,0.0321]
[1750311050293,0.62889587,105140.0,105130.0,0.1962]
[1750311050691,0.65747487,105140.0,105130.0,0.1962]
[1750311051165,0.62889587,105140.0,105130.0,0.1962]
[1750311051795,0.65747587,105140.0,105130.0,0.1962]
[1750311053157,0.65747587,105140.0,105130.0,0.04112]
[1750311056184,0.65747587,105140.0,105130.0,0.07102]
[1750311057395,0.4767638,105140.0,105130.0,0.28028444]
[1750311057641,0.68600824,105140.0,105130.0,0.31038444]
[1750311057849,0.65742824,105140.0,105130.0,0.31038444]
[1750311058474,0.66693927,105140.0,105130.0,0.31038444]
[1750311059644,0.66693927,105140.0,105130.0,0.31989611]
[1750311059846,0.66693927,105140.0,105130.0,0.31038444]
[1750311060723,0.3628219,105140.0,105130.0,0.3294075]
[1750311060952,0.05695811,105160.0,105150.0,0.20922427]
[1750311061183,0.02793337,105160.0,105150.0,0.47115395]
[1750311061422,0.27792143,105170.0,105160.0,0.2187135]
[1750311061658,0.07774504,105170.0,105160.0,0.28552218]
[1750311061879,0.40442951,105170.0,105160.0,0.28552218]
[1750311062096,0.43676177,105170.0,105160.0,0.28552218]
[1750311062543,0.06502281,105170.0,105160.0,0.2760135]
[1750311062979,0.40802281,105170.0,105160.0,0.2760135]
[1750311063421,0.58868332,105170.0,105160.0,0.2760135]
[1750311063633,0.58868332,105170.0,105160.0,0.27601368]
[1750311063904,0.58868332,105170.0,105160.0,0.28552254]
[1750311064118,0.58968332,105170.0,105160.0,0.28552254]
[1750311064797,0.39951503,105170.0,105160.0,0.28552254]
[1750311065039,0.39951503,105170.0,105160.0,0.29503131]
[1750311065744,0.58968332,105170.0,105160.0,0.29503131]
[1750311068262,0.36148202,105170.0,105160.0,0.29503068]
[1750311068481,0.38049785,105170.0,105160.0,0.29503068]
[1750311068724,0.3709898,105170.0,105160.0,0.29503068]
[1750311068977,0.38049776,105170.0,105160.0,0.29503068]
[1750311069197,0.37749776,105170.0,105160.0,0.29503068]
[1750311069634,0.15008479,105170.0,105160.0,0.29503068]
[1750311069856,0.03052388,105170.0,105160.0,0.29503068]
[1750311070065,0.03152388,105170.0,105160.0,0.29503068]
[1750311070325,0.03152379,105170.0,105160.0,0.29503068]
[1750311070548,0.02201574,105170.0,105160.0,0.29503068]
[1750311071315,0.03152379,105170.0,105160.0,0.29503068]
[1750311071771,0.38103202,105170.0,105160.0,0.29503068]
[1750311072540,0.40604314,105170.0,105160.0,0.29503068]
[1750311073704,0.39653482,105170.0,105160.0,0.29503068]
[1750311074020,0.38702659,105170.0,105160.0,0.29503068]
[1750311074460,0.39653482,105170.0,105160.0,0.29503068]
[1750311074930,0.39653473,105170.0,105160.0,0.29503068]
[1750311075277,0.40604296,105170.0,105160.0,0.29503068]
[1750311076911,0.39653473,105170.0,105160.0,0.29503068]
[1750311077618,0.37751854,105170.0,105160.0,0.29503068]
[1750311078560,0.38702668,105170.0,105160.0,0.29503068]
[1750311078806,0.37751854,105170.0,105160.0,0.29503068]
[1750311079235,0.38702659,105170.0,105160.0,0.29503068]
[1750311079529,0.39653482,105170.0,105160.0,0.29503068]
[1750311081785,0.40604314,105170.0,105160.0,0.29503068]
[1750311081994,0.40604377,105170.0,105160.0,0.29503068]
[1750311083094,0.39653536,105170.0,105160.0,0.29503068]
[1750311083674,0.38702704,105170.0,105160.0,0.29503068]
[1750311085680,0.38702704,105170.0,105160.0,0.33511068]
[1750311086617,0.37751881,105170.0,105160.0,0.33511068]
[1750311087354,0.38702695,105170.0,105160.0,0.33511068]
[1750311088048,0.39653518,105170.0,105160.0,0.33511068]
[1750311088976,0.38702695,105170.0,105160.0,0.33511068]
[1750311089393,0.39653518,105170.0,105160.0,0.33511068]
[1750311090520,0.38702695,105170.0,105160.0,0.33511068]
[1750311092128,0.39653518,105170.0,105160.0,0.33511068]
[1750311092340,0.41936443,105170.0,105160.0,0.33511068]
[1750311092540,0.39653518,105170.0,105160.0,0.33511068]
[1750311092763,0.4193651,105170.0,105160.0,0.33511068]
[1750311092972,0.39653518,105170.0,105160.0,0.33511068]
[1750311093188,0.41936515,105170.0,105160.0,0.33511068]
[1750311093427,0.42887347,105170.0,105160.0,0.33511068]
[1750311096595,0.41936515,105170.0,105160.0,0.33511068]
[1750311098289,0.42828587,105170.0,105160.0,0.33511068]
[1750311098886,0.42828587,105170.0,105160.0,0.29503068]
[1750311099097,0.42828584,105170.0,105160.0,0.46119068]
[1750311099316,0.41877761,105170.0,105160.0,0.49199068]
[1750311099952,0.40985692,105170.0,105160.0,0.49199068]
[1750311100173,0.41877762,105170.0,105160.0,0.49199068]
[1750311102265,0.42828585,105170.0,105160.0,0.43269068]
[1750311103184,0.4282859,105170.0,105160.0,0.43269068]
[1750311103386,0.42828577,105170.0,105160.0,0.43269068]
[1750311104283,0.41877754,105170.0,105160.0,0.46129068]
[1750311104513,0.41877754,105170.0,105160.0,0.49249068]
[1750311104739,0.40985692,105170.0,105160.0,0.49249068]
[1750311106045,0.41936515,105170.0,105160.0,0.49249068]
[1750311107353,0.42828573,105170.0,105160.0,0.49249068]
[1750311107566,0.41936515,105170.0,105160.0,0.49249068]
[1750311107959,0.41936515,105170.0,105160.0,0.43269068]
[1750311108180,0.42887347,105170.0,105160.0,0.43269068]
[1750311109416,0.42887392,105170.0,105160.0,0.43269068]
[1750311109640,0.43779453,105170.0,105160.0,0.43269068]
[1750311109963,0.42828612,105170.0,105160.0,0.43269068]
[1750311110196,0.42828608,105170.0,105160.0,0.43269068]
[1750311110413,0.41936551,105170.0,105160.0,0.43269068]
[1750311111395,0.42828609,105170.0,105160.0,0.43269068]
[1750311112538,0.41877777,105170.0,105160.0,0.49099068]
[1750311112764,0.40985719,105170.0,105160.0,0.49099068]
[1750311113953,0.40034896,105170.0,105160.0,0.49099068]
[1750311114161,0.40034851,105170.0,105160.0,0.49099068]
[1750311114377,0.40985665,105170.0,105160.0,0.49099068]
[1750311114589,0.40034851,105170.0,105160.0,0.49099068]
[1750311115064,0.40985674,105170.0,105160.0,0.49099068]
[1750311115281,0.40985665,105170.0,105160.0,0.49099068]
[1750311117221,0.41936488,105170.0,105160.0,0.49099068]
[1750311117423,0.42828582,105170.0,105160.0,0.49099068]
[1750311117641,0.42828581,105170.0,105160.0,0.49099068]
[1750311117867,0.43779413,105170.0,105160.0,0.49099068]
[1750311118941,0.43779418,105170.0,105160.0,0.49099068]
[1750311119165,0.60894673,105170.0,105160.0,0.28852638]
[1750311119380,0.61845514,105170.0,105160.0,0.39461542]
[1750311119629,0.61845514,105170.0,105160.0,0.38510638]
[1750311120169,0.61845514,105170.0,105160.0,0.39461542]
[1750311120382,0.608947,105170.0,105160.0,0.40412455]
[1750311121312,0.60894696,105170.0,105160.0,0.39461551]
[1750311123449,0.20920437,105160.0,105150.0,0.24730446]
[1750311123712,0.00950886,105160.0,105150.0,0.46120418]
[1750311123926,0.01901745,105160.0,105150.0,0.47071404]
[1750311126109,0.02852649,105160.0,105150.0,0.47071404]
[1750311126894,0.01901745,105160.0,105150.0,0.47071404]
[1750311127718,0.0285264,105160.0,105150.0,0.47071404]
[1750311128138,0.03803553,105160.0,105150.0,0.47071404]
[1750311128359,0.01901745,105160.0,105150.0,0.47071404]
[1750311129245,0.0285264,105160.0,105150.0,0.47071404]
[1750311129696,0.01901745,105160.0,105150.0,0.47071404]
[1750311129909,0.00950859,105160.0,105150.0,0.47071404]
[1750311130144,0.01901736,105160.0,105150.0,0.47071404]
[1750311130574,0.00950859,105160.0,105150.0,0.47071404]
[1750311130788,0.01901736,105160.0,105150.0,0.47071404]
[1750311132866,0.58752373,105170.0,105160.0,0.2187135]
[1750311133092,0.41578147,105170.0,105160.0,0.28942218]
[1750311133319,0.41637145,105170.0,105160.0,0.28942218]
[1750311133555,0.42587986,105170.0,105160.0,0.28942218]
[1750311134068,0.42587986,105170.0,105160.0,0.2799135]
[1750311134270,0.42687986,105170.0,105160.0,0.2799135]
[1750311134709,0.42687986,105170.0,105160.0,0.28942218]
[1750311134933,0.40786313,105170.0,105160.0,0.28942218]
[1750311135163,0.40786313,105170.0,105160.0,0.32942218]
[1750311135386,0.40986313,105170.0,105160.0,0.32942218]
[1750311135605,0.41937145,105170.0,105160.0,0.32942218]
[1750311136273,0.42887986,105170.0,105160.0,0.32942218]
[1750311136724,0.40986313,105170.0,105160.0,0.32942218]
[1750311136941,0.40035508,105170.0,105160.0,0.32942218]
[1750311138619,0.40986304,105170.0,105160.0,0.32942218]
[1750311141355,0.41937136,105170.0,105160.0,0.32942218]
[1750311141567,0.41937136,105170.0,105160.0,0.29812254]
[1750311141770,0.41936592,105170.0,105160.0,0.29812254]
[1750311142204,0.60953421,105170.0,105160.0,0.29812254]
[1750311142665,0.60953421,105170.0,105160.0,0.25871368]
[1750311142666,0.60002643,105170.0,105160.0,0.25871368]
[1750311142868,0.59051847,105170.0,105160.0,0.24920473]
[1750311144048,0.59051847,105170.0,105160.0,0.23969569]
[1750311144270,0.58101024,105170.0,105160.0,0.23969569]
[1750311144463,0.57150192,105170.0,105160.0,0.23969569]
[1750311145640,0.57150192,105170.0,105160.0,0.25871404]
[1750311146717,0.58042078,105170.0,105160.0,0.25871404]
[1750311148069,0.5804222,105170.0,105160.0,0.25871404]
[1750311149037,0.5804222,105170.0,105160.0,0.26822308]
[1750311149686,0.5804222,105170.0,105160.0,0.25871404]
[1750311150661,0.5804222,105170.0,105160.0,0.23969569]
[1750311151994,0.5804222,105170.0,105160.0,0.24920491]
[1750311152226,0.5804222,105170.0,105160.0,0.25871404]
[1750311152452,0.58042233,105170.0,105160.0,0.26822308]
[1750311152907,0.57150334,105170.0,105160.0,0.27773203]
[1750311153166,0.58042235,105170.0,105160.0,0.25871404]
[1750311155297,0.58042235,105170.0,105150.0,0.25200446]
[1750311155552,0.54920473,105160.0,105150.0,0.19476]
[1750311155814,0.57203673,105160.0,105150.0,0.19476]
[1750311156040,0.60223673,105160.0,105150.0,0.19476]
[1750311156497,0.61115713,105160.0,105150.0,0.19476]
[1750311156719,0.20922427,105150.0,105140.0,0.56132874]
[1750311156959,0.01902125,105140.0,105130.0,0.90502853]
[1750311157183,0.01902188,105140.0,105130.0,0.79877723]
[1750311158007,0.01902179,105140.0,105130.0,0.79877723]
[1750311158227,0.00951085,105140.0,105130.0,0.79877723]
[1750311158453,0.00951085,105140.0,105130.0,0.80077723]
[1750311158674,0.01902107,105140.0,105130.0,0.81028853]
[1750311158884,0.01902098,105140.0,105130.0,0.81028853]
[1750311159781,0.01902098,105140.0,105130.0,0.81228853]
[1750311160006,0.02853174,105140.0,105130.0,0.81228853]
[1750311160668,0.02853174,105140.0,105130.0,0.61752853]
[1750311160893,0.39049662,105150.0,105140.0,0.19973368]
[1750311161328,0.39049662,105150.0,105140.0,0.40400471]
[1750311162484,0.39049662,105150.0,105140.0,0.40600471]
[1750311164449,0.39049662,105150.0,105140.0,0.41551565]
[1750311164893,0.39049662,105150.0,105140.0,0.4250265]
[1750311165906,0.39049662,105150.0,105140.0,0.43453726]
[1750311168563,0.39049662,105150.0,105140.0,0.43453681]
[1750311168769,0.41902683,105150.0,105140.0,0.43453636]
[1750311170632,0.41902683,105150.0,105140.0,0.46483636]
[1750311171067,0.41902683,105150.0,105140.0,0.49413636]
[1750311171285,0.35901999,105150.0,105140.0,0.49413636]
[1750311171952,0.36853021,105150.0,105140.0,0.49413636]
[1750311172714,0.36853021,105150.0,105140.0,0.49413591]
[1750311172927,0.35901999,105150.0,105140.0,0.49413591]
[1750311173505,0.35901945,105150.0,105140.0,0.49413591]
[1750311173747,0.36852949,105150.0,105140.0,0.49413591]
[1750311175095,0.34950959,105150.0,105140.0,0.49413591]
[1750311175302,0.37803926,105150.0,105140.0,0.49413591]
[1750311176421,0.36852922,105150.0,105140.0,0.49413591]
[1750311176623,0.37803926,105150.0,105140.0,0.49413591]
[1750311177047,0.37803926,105150.0,105140.0,0.49409591]
[1750311178404,0.56824435,105150.0,105140.0,0.40596417]
[1750311178665,0.36852967,105150.0,105140.0,0.47377466]
[1750311179102,0.22429311,105150.0,105140.0,0.47377466]
[1750311179976,0.23380242,105150.0,105140.0,0.47377466]
[1750311180672,0.24331246,105150.0,105140.0,0.47377466]
[1750311180882,0.24331237,105150.0,105140.0,0.47377466]
[1750311181358,0.23380242,105150.0,105140.0,0.47377466]
[1750311181807,0.20527348,105150.0,105140.0,0.57001642]
[1750311182052,0.3555028,105170.0,105160.0,0.21871323]
[1750311182270,0.37451845,105170.0,105160.0,0.47119323]
[1750311182754,0.03451836,105170.0,105160.0,0.47119323]
[1750311182971,0.38402641,105170.0,105160.0,0.47119323]
[1750311183441,0.38602641,105170.0,105160.0,0.47119323]
[1750311183689,0.39853464,105170.0,105160.0,0.47119323]
[1750311184147,0.38902641,105170.0,105160.0,0.47119323]
[1750311184589,0.37951836,105170.0,105160.0,0.47119323]
[1750311185335,0.38902641,105170.0,105160.0,0.47119323]
[1750311185559,0.37001049,105170.0,105160.0,0.47119323]
[1750311185824,0.37951836,105170.0,105160.0,0.47119323]
[1750311186053,0.20881663,105170.0,105160.0,0.47119323]
[1750311186492,0.21532432,105170.0,105160.0,0.47119323]
[1750311186707,0.22283237,105170.0,105160.0,0.47119323]
[1750311186927,0.22483237,105170.0,105160.0,0.47119323]
[1750311187654,0.25344035,105170.0,105160.0,0.47119323]
[1750311188114,0.24393248,105170.0,105160.0,0.47119323]
[1750311188569,0.25344035,105170.0,105160.0,0.47119323]
[1750311188777,0.25344026,105170.0,105160.0,0.47119323]
[1750311188988,0.26294822,105170.0,105160.0,0.47119323]
[1750311189728,0.25344026,105170.0,105160.0,0.47119323]
[1750311190207,0.24393248,105170.0,105160.0,0.47119323]
[1750311190424,0.04011603,105170.0,105160.0,0.47119323]
[1750311190660,0.04962363,105170.0,105160.0,0.47119323]
[1750311191336,0.05913141,105170.0,105160.0,0.47119323]
[1750311191550,0.06863928,105170.0,105160.0,0.47119323]
[1750311195744,0.04962363,105170.0,105160.0,0.47119323]